{"text_format":"3","workbook":"xlsx","n_sheets":2,"sheets":["Piedāvājuma veidlapa","Izmaksu sadalījums"],"not_rendered":{"charts":1,"images":2,"defined_names":4},"read":"whole","date_system":"1900"}

{"sheet":"Piedāvājuma veidlapa","index":0,"n_rows":48,"n_cols":7,"rows_kept":48,"merged":[[15,1,25,5],[29,1,31,5],[35,1,37,5],[43,1,45,5]]}
[]
[null,"CELTNIECĪBAS DARBU CENAS PIEDĀVĀJUMA VEIDLAPA",{"$nulls":4}," "]
[]
[]
[null,"INFORMĀCIJA PAR ĪPAŠNIEKU",null,null,"INFORMĀCIJA PAR LĪGUMSLĒDZĒJU"]
[null,"Vārds, uzvārds","Nauris Kļaviņš",null,"Uzņēmums","Fabrikam, Inc."]
[null,"Adrese","Rožu iela 123",null,"Vārds, uzvārds","Jānis Vanags"]
[null,"Pilsēta, novads, pasta indekss","Murjāņi, LV-8888",null,"Adrese","Piesaules iela 321"]
[null,"Tālrunis",8885550111,null,"Pilsēta, novads, pasta indekss","Murjāņi, LV-8888"]
[null,"E-pasts","nauris@proseware.com",null,"Tālrunis",8885550123]
[{"$nulls":4},"E-pasts","janis@fabrikam.com"]
[null,"Projekta nosaukums","Sadarbības kāpnes",null,"Pabeigšanas datums","2013-07-14"]
[]
[null,"DARBA APJOMS"]
[]
[null,"Šeit jāapraksta projekta darbu apjoms. Ierakstiet visas specifikācijas, ko vien vēlaties. Šis ir viltus projekts par lielu kāpņu izbūvi. Rāmja izveidei mēs izmantosim tikai 2x4 un 2x8 kokmateriālus, kā arī siju kronšteinus. Pakāpieni tiks izzāģēti no 2x4 materiāla. Tiks izmantotas ne mazākās kā 2 collu skrūves. Naglas nebūs mazākas par 10 peniju naglām. Konstrukcija izturēs vismaz 500 mārciņu svaru uz katru pakāpienu. Pakāpieni būs līmenī ar māju un tiks piestiprināti pie tās. Līgumslēdzējs parūpēsies par darba vietas satīrīšanu."]
{"$rows_empty":11}
[null,"NAV IEKĻAUTS"]
[]
[null,"Margas netiks uzstādītas. Pamatni sagatavo īpašnieks. Kāpņu krāsošanu veic īpašnieks."]
[]
[]
[]
[null,"UZŅĒMUMA PIEDĀVĀJUMS"]
[]
[null,"Mēs, Fabrikam, Inc., piedāvājam iepriekš minēto darba apjomu pabeigt līdz 14.07.2012. par 476,43 €."]
[]
[]
[]
[null,"Iesniedzējs: (uzņēmuma pārstāvis)",{"$nulls":3},"Datums"]
[]
[null,"ĪPAŠNIEKA APSTIPRINĀJUMS"]
[]
[null,"Es, Nauris Kļaviņš, pieņemu iepriekš minēto darba apjomu, ko tiek piedāvāts pabeigt līdz 14.07.2012. par 476,43 €."]
[]
[]
[]
[null,"Iesniedzējs: (mājas īpašnieks vai pilnvarots pārstāvis)",{"$nulls":3},"Datums"]

{"sheet":"Izmaksu sadalījums","index":1,"n_rows":47,"n_cols":6,"rows_kept":47,"merged":[[42,3,42,4],[43,3,43,4],[44,3,44,4],[45,3,45,4],[46,3,46,4],[47,3,47,4],[48,3,48,4],[49,3,49,4]]}
[]
[null,"CENAS PIEDĀVĀJUMA KOPSAVILKUMS",{"$nulls":3}," "]
[]
[]
[null,"MATERIĀLU UN IZMAKSU SARAKSTS"]
[]
[null,"Daudz.","Apraksts","Vērtība","Kopā"," "]
[null,5,"2x8x10 kokmateriāli",{"v":6.75,"d":"6.75 €"},{"$f":"Piedāvājuma_vienumi[Vērtība]*Piedāvājuma_vienumi[Daudz.]","v":{"v":33.75,"d":"33.75 €"}},{"$f":"_xlfn.RANK.EQ(Piedāvājuma_vienumi[[#This Row],[Kopā]],Piedāvājuma_vienumi[Kopā])","v":4}]
[null,20,"2x4x10 kokmateriāli",{"v":4.97,"d":"4.97 €"},{"$f":"Piedāvājuma_vienumi[Vērtība]*Piedāvājuma_vienumi[Daudz.]","v":{"v":99.39999999999999,"d":"99.40 €"}},{"$f":"_xlfn.RANK.EQ(Piedāvājuma_vienumi[[#This Row],[Kopā]],Piedāvājuma_vienumi[Kopā])","v":2}]
[null,30,"Siju kronšteini",{"v":2.49,"d":"2.49 €"},{"$f":"Piedāvājuma_vienumi[Vērtība]*Piedāvājuma_vienumi[Daudz.]","v":{"v":74.7,"d":"74.70 €"}},{"$f":"_xlfn.RANK.EQ(Piedāvājuma_vienumi[[#This Row],[Kopā]],Piedāvājuma_vienumi[Kopā])","v":3}]
[null,2,"Kaste skrūvju, 2 collu",{"v":6.67,"d":"6.67 €"},{"$f":"Piedāvājuma_vienumi[Vērtība]*Piedāvājuma_vienumi[Daudz.]","v":{"v":13.34,"d":"13.34 €"}},{"$f":"_xlfn.RANK.EQ(Piedāvājuma_vienumi[[#This Row],[Kopā]],Piedāvājuma_vienumi[Kopā])","v":6}]
[null,2,"Kaste naglu, 10 peniju",{"v":3.25,"d":"3.25 €"},{"$f":"Piedāvājuma_vienumi[Vērtība]*Piedāvājuma_vienumi[Daudz.]","v":{"v":6.5,"d":"6.50 €"}},{"$f":"_xlfn.RANK.EQ(Piedāvājuma_vienumi[[#This Row],[Kopā]],Piedāvājuma_vienumi[Kopā])","v":7}]
[null,2,"Cimdu pāris, ādas",{"v":7.75,"d":"7.75 €"},{"$f":"Piedāvājuma_vienumi[Vērtība]*Piedāvājuma_vienumi[Daudz.]","v":{"v":15.5,"d":"15.50 €"}},{"$f":"_xlfn.RANK.EQ(Piedāvājuma_vienumi[[#This Row],[Kopā]],Piedāvājuma_vienumi[Kopā])","v":5}]
[null,2,"Maksa par darbu",{"v":100,"d":"100.00 €"},{"$f":"Piedāvājuma_vienumi[Vērtība]*Piedāvājuma_vienumi[Daudz.]","v":{"v":200,"d":"200.00 €"}},{"$f":"_xlfn.RANK.EQ(Piedāvājuma_vienumi[[#This Row],[Kopā]],Piedāvājuma_vienumi[Kopā])","v":1}]
[{"$nulls":4},{"$f":"Piedāvājuma_vienumi[Vērtība]*Piedāvājuma_vienumi[Daudz.]","v":{"v":0,"d":"0.00 €"}},{"$f":"_xlfn.RANK.EQ(Piedāvājuma_vienumi[[#This Row],[Kopā]],Piedāvājuma_vienumi[Kopā])","v":8}]
[{"$nulls":4},{"$f":"Piedāvājuma_vienumi[Vērtība]*Piedāvājuma_vienumi[Daudz.]","v":{"v":0,"d":"0.00 €"}},{"$f":"_xlfn.RANK.EQ(Piedāvājuma_vienumi[[#This Row],[Kopā]],Piedāvājuma_vienumi[Kopā])","v":8}]
[{"$nulls":4},{"$f":"Piedāvājuma_vienumi[Vērtība]*Piedāvājuma_vienumi[Daudz.]","v":{"v":0,"d":"0.00 €"}},{"$f":"_xlfn.RANK.EQ(Piedāvājuma_vienumi[[#This Row],[Kopā]],Piedāvājuma_vienumi[Kopā])","v":8}]
[{"$nulls":4},{"$f":"Piedāvājuma_vienumi[Vērtība]*Piedāvājuma_vienumi[Daudz.]","v":{"v":0,"d":"0.00 €"}},{"$f":"_xlfn.RANK.EQ(Piedāvājuma_vienumi[[#This Row],[Kopā]],Piedāvājuma_vienumi[Kopā])","v":8}]
[{"$nulls":4},{"$f":"Piedāvājuma_vienumi[Vērtība]*Piedāvājuma_vienumi[Daudz.]","v":{"v":0,"d":"0.00 €"}},{"$f":"_xlfn.RANK.EQ(Piedāvājuma_vienumi[[#This Row],[Kopā]],Piedāvājuma_vienumi[Kopā])","v":8}]
[{"$nulls":4},{"$f":"Piedāvājuma_vienumi[Vērtība]*Piedāvājuma_vienumi[Daudz.]","v":{"v":0,"d":"0.00 €"}},{"$f":"_xlfn.RANK.EQ(Piedāvājuma_vienumi[[#This Row],[Kopā]],Piedāvājuma_vienumi[Kopā])","v":8}]
[{"$nulls":4},{"$f":"Piedāvājuma_vienumi[Vērtība]*Piedāvājuma_vienumi[Daudz.]","v":{"v":0,"d":"0.00 €"}},{"$f":"_xlfn.RANK.EQ(Piedāvājuma_vienumi[[#This Row],[Kopā]],Piedāvājuma_vienumi[Kopā])","v":8}]
[{"$nulls":4},{"$f":"Piedāvājuma_vienumi[Vērtība]*Piedāvājuma_vienumi[Daudz.]","v":{"v":0,"d":"0.00 €"}},{"$f":"_xlfn.RANK.EQ(Piedāvājuma_vienumi[[#This Row],[Kopā]],Piedāvājuma_vienumi[Kopā])","v":8}]
[{"$nulls":4},{"$f":"Piedāvājuma_vienumi[Vērtība]*Piedāvājuma_vienumi[Daudz.]","v":{"v":0,"d":"0.00 €"}},{"$f":"_xlfn.RANK.EQ(Piedāvājuma_vienumi[[#This Row],[Kopā]],Piedāvājuma_vienumi[Kopā])","v":8}]
[{"$nulls":4},{"$f":"Piedāvājuma_vienumi[Vērtība]*Piedāvājuma_vienumi[Daudz.]","v":{"v":0,"d":"0.00 €"}},{"$f":"_xlfn.RANK.EQ(Piedāvājuma_vienumi[[#This Row],[Kopā]],Piedāvājuma_vienumi[Kopā])","v":8}]
[{"$nulls":4},{"$f":"Piedāvājuma_vienumi[Vērtība]*Piedāvājuma_vienumi[Daudz.]","v":{"v":0,"d":"0.00 €"}},{"$f":"_xlfn.RANK.EQ(Piedāvājuma_vienumi[[#This Row],[Kopā]],Piedāvājuma_vienumi[Kopā])","v":8}]
[{"$nulls":4},{"$f":"Piedāvājuma_vienumi[Vērtība]*Piedāvājuma_vienumi[Daudz.]","v":{"v":0,"d":"0.00 €"}},{"$f":"_xlfn.RANK.EQ(Piedāvājuma_vienumi[[#This Row],[Kopā]],Piedāvājuma_vienumi[Kopā])","v":8}]
[{"$nulls":4},{"$f":"Piedāvājuma_vienumi[Vērtība]*Piedāvājuma_vienumi[Daudz.]","v":{"v":0,"d":"0.00 €"}},{"$f":"_xlfn.RANK.EQ(Piedāvājuma_vienumi[[#This Row],[Kopā]],Piedāvājuma_vienumi[Kopā])","v":8}]
[{"$nulls":4},{"$f":"Piedāvājuma_vienumi[Vērtība]*Piedāvājuma_vienumi[Daudz.]","v":{"v":0,"d":"0.00 €"}},{"$f":"_xlfn.RANK.EQ(Piedāvājuma_vienumi[[#This Row],[Kopā]],Piedāvājuma_vienumi[Kopā])","v":8}]
[{"$nulls":4},{"$f":"Piedāvājuma_vienumi[Vērtība]*Piedāvājuma_vienumi[Daudz.]","v":{"v":0,"d":"0.00 €"}},{"$f":"_xlfn.RANK.EQ(Piedāvājuma_vienumi[[#This Row],[Kopā]],Piedāvājuma_vienumi[Kopā])","v":8}]
[{"$nulls":4},{"$f":"Piedāvājuma_vienumi[Vērtība]*Piedāvājuma_vienumi[Daudz.]","v":{"v":0,"d":"0.00 €"}},{"$f":"_xlfn.RANK.EQ(Piedāvājuma_vienumi[[#This Row],[Kopā]],Piedāvājuma_vienumi[Kopā])","v":8}]
[1,{"$nulls":3},{"$f":"Piedāvājuma_vienumi[Vērtība]*Piedāvājuma_vienumi[Daudz.]","v":{"v":0,"d":"0.00 €"}},{"$f":"_xlfn.RANK.EQ(Piedāvājuma_vienumi[[#This Row],[Kopā]],Piedāvājuma_vienumi[Kopā])","v":8}]
[2,null,null,"Starpsumma",{"$f":"SUBTOTAL(109,Piedāvājuma_vienumi[Kopā])","v":{"v":443.18999999999994,"d":"443.19 €"}}]
[3,null,null,"Nodokļa likme",{"v":0.075,"d":"7.50%"}]
[4,null,null,"Nodoklis",{"$f":"Nodokļa_likme*Piedāvājuma_vienumi[[#Totals],[Kopā]]","v":{"v":33.23924999999999,"d":"33.24 €"}}]
[5,null,null,"Gala summa",{"$f":"Nodoklis+Piedāvājuma_vienumi[[#Totals],[Kopā]]","v":{"v":476.4292499999999,"d":"476.43 €"}}]
[]
[]
[]
[null,"MATERIĀLU UN IZMAKSU SADALĪJUMS"]
[]
[]
[null,null,"TOTAL","PIEZĪMES"]
[null,{"$f":"INDEX(Piedāvājuma_vienumi[],MATCH(A31,Piedāvājuma_vienumi[[ ]],0),2)","v":"Maksa par darbu"},{"$f":"INDEX(Piedāvājuma_vienumi[],MATCH(A31,Piedāvājuma_vienumi[[ ]],0),4)","v":{"v":200,"d":"$200.00"}}]
[null,{"$f":"INDEX(Piedāvājuma_vienumi[],MATCH(A32,Piedāvājuma_vienumi[[ ]],0),2)","v":"2x4x10 kokmateriāli"},{"$f":"INDEX(Piedāvājuma_vienumi[],MATCH(A32,Piedāvājuma_vienumi[[ ]],0),4)","v":{"v":99.39999999999999,"d":"$99.40"}}]
[null,{"$f":"INDEX(Piedāvājuma_vienumi[],MATCH(A33,Piedāvājuma_vienumi[[ ]],0),2)","v":"Siju kronšteini"},{"$f":"INDEX(Piedāvājuma_vienumi[],MATCH(A33,Piedāvājuma_vienumi[[ ]],0),4)","v":{"v":74.7,"d":"$74.70"}}]
[null,{"$f":"INDEX(Piedāvājuma_vienumi[],MATCH(A34,Piedāvājuma_vienumi[[ ]],0),2)","v":"2x8x10 kokmateriāli"},{"$f":"INDEX(Piedāvājuma_vienumi[],MATCH(A34,Piedāvājuma_vienumi[[ ]],0),4)","v":{"v":33.75,"d":"$33.75"}}]
[null,{"$f":"INDEX(Piedāvājuma_vienumi[],MATCH(A35,Piedāvājuma_vienumi[[ ]],0),2)","v":"Cimdu pāris, ādas"},{"$f":"INDEX(Piedāvājuma_vienumi[],MATCH(A35,Piedāvājuma_vienumi[[ ]],0),4)","v":{"v":15.5,"d":"$15.50"}}]